bitfinex/quotes_BTCUSD_20241021
["timestamp","ask_amount","ask_price","bid_price","bid_amount"]
[1729480918745,0.001654,68790.0,68789.0,0.27614843]
[1729480918959,0.001654,68790.0,68789.0,0.21092144]
[1729480919208,0.182454,68790.0,68789.0,0.12577643]
[1729480919419,0.18531923,68790.0,68789.0,0.06748645]
[1729480919662,0.18531923,68790.0,68789.0,0.05648645]
[1729480919918,0.18531923,68790.0,68789.0,0.03805955]
[1729480920132,0.18531923,68790.0,68789.0,0.05849029]
[1729480920382,0.18531923,68790.0,68789.0,0.06149029]
[1729480920819,0.18531923,68790.0,68789.0,0.05549029]
[1729480921039,0.18531923,68790.0,68789.0,0.05749029]
[1729480921262,0.18531923,68790.0,68789.0,0.06658354]
[1729480922791,0.18531923,68790.0,68789.0,0.06657721]
[1729480923257,0.18531923,68790.0,68789.0,0.05193856]
[1729480923499,0.18531923,68790.0,68789.0,0.06457697]
[1729480923739,0.083854,68790.0,68789.0,0.05263022]
[1729480923959,0.082854,68790.0,68789.0,0.05186561]
[1729480924176,0.082854,68790.0,68789.0,0.08017636]
[1729480924417,0.082854,68790.0,68789.0,0.08926796]
[1729480924418,0.083854,68790.0,68789.0,0.08926796]
[1729480925090,0.08571923,68790.0,68789.0,0.08426796]
[1729480925307,0.08571923,68790.0,68789.0,0.05775436]
[1729480925733,0.08571923,68790.0,68789.0,0.06275436]
[1729480926209,0.082854,68790.0,68789.0,0.06275436]
[1729480926885,0.082854,68790.0,68789.0,0.05186558]
[1729480927110,0.083854,68790.0,68789.0,0.05186558]
[1729480928225,0.083854,68790.0,68789.0,0.06095883]
[1729480929394,0.083854,68790.0,68789.0,0.07837733]
[1729480929675,0.002654,68790.0,68789.0,0.07837733]
[1729480929923,0.00551923,68790.0,68789.0,0.05368065]
[1729480930617,0.00451923,68790.0,68789.0,0.05368065]
[1729480930871,0.00451923,68790.0,68789.0,0.09722192]
[1729480931120,0.00451923,68790.0,68789.0,0.09722076]
[1729480931361,0.00551923,68790.0,68789.0,0.09722076]
[1729480931586,0.00451923,68790.0,68789.0,0.09822076]
[1729480931799,0.002654,68790.0,68789.0,0.05567967]
[1729480932017,0.002654,68790.0,68789.0,0.12099131]
[1729480932231,0.002654,68790.0,68789.0,0.20886312]
[1729480932446,0.002654,68790.0,68789.0,0.16453241]
[1729480932665,0.002654,68790.0,68789.0,0.05990462]
[1729480932911,0.002654,68790.0,68789.0,0.11998975]
[1729480933150,0.002654,68790.0,68789.0,0.05467967]
[1729480933361,0.00551923,68790.0,68789.0,0.05967967]
[1729480933584,0.00451923,68790.0,68789.0,0.05867967]
[1729480934025,0.00451923,68790.0,68789.0,0.06367967]
[1729480934457,0.00451923,68790.0,68789.0,0.05368037]
[1729480934679,0.00551923,68790.0,68789.0,0.05468037]
[1729480934890,0.00551923,68790.0,68789.0,0.05568037]
[1729480935132,0.00451923,68790.0,68789.0,0.05468037]
[1729480936228,0.00451923,68790.0,68789.0,0.05368037]
[1729480936448,0.00451923,68790.0,68789.0,0.05168037]
[1729480936664,0.10051923,68790.0,68789.0,0.05368037]
[1729480936874,0.10051923,68790.0,68789.0,0.03626187]
[1729480937094,0.10051923,68790.0,68789.0,0.04869226]
[1729480937318,0.10151923,68790.0,68789.0,0.04869226]
[1729480937547,0.10151923,68790.0,68789.0,0.01034768]
[1729480937765,0.10151923,68790.0,68789.0,0.03960169]
[1729480937984,0.10151923,68790.0,68789.0,0.04969514]
[1729480938203,0.10051923,68790.0,68789.0,0.04969514]
[1729480939333,0.10051923,68790.0,68789.0,0.04869514]
[1729480939768,0.10051923,68790.0,68789.0,0.03226261]
[1729480939989,0.10051923,68790.0,68789.0,0.03326261]
[1729480940459,0.10051923,68790.0,68789.0,0.03126261]
[1729480940460,0.17571923,68790.0,68789.0,0.03126261]
[1729480940693,0.32467838,68790.0,68789.0,0.0148944]
[1729480940914,0.32181315,68790.0,68789.0,0.0168944]
[1729480941144,0.32181315,68790.0,68789.0,0.00737372]
[1729480941375,0.32181315,68790.0,68789.0,0.00537437]
[1729480941573,0.32281315,68790.0,68789.0,0.00637437]
[1729480942741,0.32181315,68790.0,68789.0,0.00637437]
[1729480943175,0.32281315,68790.0,68789.0,0.00637437]
[1729480943413,0.32181315,68790.0,68789.0,0.00537437]
[1729480943628,0.32281315,68790.0,68789.0,0.00737437]
[1729480944708,0.32281315,68790.0,68789.0,0.002827]
[1729480945133,0.32281315,68790.0,68789.0,0.00737417]
[1729480945813,0.32181315,68790.0,68789.0,0.00537417]
[1729480946017,0.32181315,68790.0,68789.0,0.00637417]
[1729480946233,0.32281315,68790.0,68789.0,0.00737417]
[1729480946707,0.32281315,68790.0,68789.0,0.00637417]
[1729480946921,0.32281315,68790.0,68789.0,0.00737417]
[1729480947854,0.32281315,68790.0,68789.0,0.002827]
[1729480948065,0.32051331,68790.0,68789.0,0.002827]
[1729480948494,0.32216731,68790.0,68789.0,0.002827]
[1729480948713,0.32216731,68790.0,68789.0,0.001827]
[1729480948926,0.32116731,68790.0,68789.0,0.000827]
[1729480949115,0.32116731,68790.0,68789.0,0.001827]
[1729480949372,0.32216731,68790.0,68789.0,0.001827]
[1729480949798,0.32316731,68790.0,68789.0,0.002827]
[1729480950010,0.32316731,68790.0,68789.0,0.001827]
[1729480950476,0.32316731,68790.0,68789.0,0.002827]
[1729480952504,0.32316731,68790.0,68789.0,0.001827]
[1729480952716,0.32116731,68790.0,68789.0,0.001827]
[1729480952939,0.32216731,68790.0,68789.0,0.002827]
[1729480953151,0.32216731,68790.0,68789.0,0.000827]
[1729480953542,0.32316731,68790.0,68789.0,0.002827]
[1729480957321,0.32116731,68790.0,68789.0,0.001827]
[1729480957983,0.32116731,68790.0,68789.0,0.000827]
[1729480958241,0.32216731,68790.0,68789.0,0.002827]
[1729480958512,0.32216731,68790.0,68789.0,0.002527]
[1729480958729,0.32216731,68790.0,68789.0,0.001527]
[1729480959183,0.32216731,68790.0,68789.0,0.002527]
[1729480959404,0.32116731,68790.0,68789.0,0.001527]
[1729480959607,0.32216731,68790.0,68789.0,0.002527]
[1729480964872,0.32216731,68790.0,68789.0,0.0070743]
[1729480966472,0.32216731,68790.0,68789.0,0.002527]
[1729480966893,0.32216731,68790.0,68789.0,0.00707433]
[1729480967527,0.32116731,68790.0,68789.0,0.00607433]
[1729480967739,0.32116731,68790.0,68789.0,0.00507433]
[1729480967978,0.32116731,68790.0,68789.0,0.00607433]
[1729480968403,0.32116731,68790.0,68789.0,0.001527]
[1729480968618,0.32116731,68790.0,68789.0,0.000527]
[1729480968834,0.32116731,68790.0,68789.0,0.00607434]
[1729480969490,0.32216731,68790.0,68789.0,0.00707434]
[1729480969698,0.32116731,68790.0,68789.0,0.00607434]
[1729480970107,0.32216731,68790.0,68789.0,0.00607434]
[1729480970353,0.32216731,68790.0,68789.0,0.00607432]
[1729480970534,0.32216731,68790.0,68789.0,0.00707432]
[1729480970996,0.15161315,68790.0,68789.0,0.01334986]
[1729480971250,0.15447838,68790.0,68789.0,0.00607432]
[1729480971468,0.15447838,68790.0,68789.0,0.00707432]
[1729480971883,0.15447838,68790.0,68789.0,0.00607432]
[1729480972311,0.15347838,68790.0,68789.0,0.00507432]
[1729480972791,0.00451923,68790.0,68789.0,0.01234978]
[1729480973029,0.00451923,68790.0,68789.0,0.00507432]
[1729480973245,0.00551923,68790.0,68789.0,0.00607432]
[1729480973481,0.15447838,68790.0,68789.0,0.00707432]
[1729480973925,0.15447838,68790.0,68789.0,0.0070743]
[1729480977621,0.15447838,68790.0,68789.0,0.00707428]
[1729480977886,0.15447838,68790.0,68789.0,0.01434987]
[1729480978370,0.15447838,68790.0,68789.0,0.00707428]
[1729480978849,0.15447838,68790.0,68789.0,0.0143499]
[1729480980549,0.15447838,68790.0,68789.0,0.00707428]
[1729480980793,0.15447838,68790.0,68789.0,0.002527]
[1729480981057,0.15447838,68790.0,68789.0,0.00707419]
[1729480981533,0.15447838,68790.0,68789.0,0.01434979]
[1729480982000,0.15447838,68790.0,68789.0,0.00707419]
[1729480982967,0.15447838,68790.0,68789.0,0.01434973]
[1729480983953,0.15447838,68790.0,68789.0,0.02525819]
[1729480984217,0.15301198,68790.0,68789.0,0.02525819]
[1729480984441,0.15301198,68790.0,68789.0,0.03484716]
[1729480985437,0.29838098,68790.0,68789.0,0.03484716]
[1729480985903,0.29838098,68790.0,68789.0,0.02525819]
[1729480986161,0.14942183,68790.0,68789.0,0.02525819]
[1729480986578,0.14942183,68790.0,68789.0,0.03484716]
[1729480989380,0.00405283,68790.0,68789.0,0.03484716]
[1729480989638,0.00405283,68790.0,68789.0,0.03284716]
[1729480989639,0.14842183,68790.0,68789.0,0.03284716]
[1729480989906,0.29838098,68790.0,68789.0,0.03284716]
[1729480990159,0.29838098,68790.0,68789.0,0.01466316]
[1729480990689,0.29838098,68790.0,68789.0,0.000527]
[1729480990925,0.29838098,68790.0,68789.0,0.00507443]
[1729480991414,0.29738098,68790.0,68789.0,0.00507443]
[1729480991654,0.29738098,68790.0,68789.0,0.00607443]
[1729480992415,0.29738098,68790.0,68789.0,0.001527]
[1729480992633,0.29838098,68790.0,68789.0,0.00707449]
[1729480992870,0.29838098,68790.0,68789.0,0.00607449]
[1729480993352,0.29838098,68790.0,68789.0,0.00707449]
[1729480993828,0.29838098,68790.0,68789.0,0.00607449]
[1729480994281,0.29838098,68790.0,68789.0,0.00707449]
[1729480996006,0.25301198,68790.0,68780.0,0.04189885]
[1729480996275,0.25301198,68790.0,68779.0,0.21563652]
[1729480996276,0.145388,68781.0,68779.0,0.25753537]
[1729480996485,0.00286523,68780.0,68779.0,0.25753537]
[1729480996692,0.00286523,68780.0,68779.0,0.07372222]
[1729480996931,0.145391,68780.0,68779.0,0.07372222]
[1729480997620,0.14825323,68782.0,68779.0,0.07372222]
[1729480997853,0.14825323,68782.0,68780.0,0.02272834]
[1729480998093,0.14825323,68782.0,68779.0,0.04189885]
[1729480998094,0.145388,68781.0,68779.0,0.04189885]
[1729480998345,0.00286523,68780.0,68779.0,0.04189885]
[1729480998559,0.145387,68782.0,68780.0,0.00727605]
[1729480998758,0.00286523,68781.0,68779.0,0.04189885]
[1729480998972,0.14825323,68781.0,68780.0,0.02272751]
[1729480999572,0.14825323,68781.0,68780.0,0.01272751]
[1729481000036,0.15125323,68781.0,68780.0,0.01272751]
[1729481000243,0.14825323,68781.0,68780.0,0.01272751]
[1729481000668,0.15325323,68781.0,68780.0,0.01272751]
[1729481000889,0.00786523,68781.0,68780.0,0.01272751]
[1729481001323,0.15325323,68781.0,68780.0,0.01272751]
[1729481001539,0.15325323,68781.0,68780.0,0.01272643]
[1729481005286,0.15325323,68781.0,68780.0,0.01090188]
[1729481006117,0.15490923,68781.0,68780.0,0.01090188]
[1729481008725,0.00952123,68781.0,68780.0,0.01090188]
[1729481008941,0.00952123,68781.0,68780.0,0.3947023]
[1729481008942,0.006656,68781.0,68780.0,0.3947023]
[1729481009145,0.006656,68781.0,68780.0,0.36852958]
[1729481009480,0.006656,68781.0,68780.0,0.37580454]
[1729481009897,0.001656,68781.0,68780.0,0.37580454]
[1729481010128,0.001656,68781.0,68780.0,0.37980454]
[1729481010327,0.001656,68781.0,68780.0,0.38380454]
[1729481010670,0.001656,68781.0,68780.0,0.37980454]
[1729481011338,0.001656,68781.0,68780.0,0.38880454]
[1729481011558,0.001656,68781.0,68780.0,0.39335134]
[1729481012121,0.001656,68781.0,68780.0,0.38935134]
[1729481012476,0.001656,68781.0,68780.0,0.38025619]
[1729481012730,0.001656,68781.0,68780.0,0.38934979]
[1729481012879,0.001656,68781.0,68780.0,0.38434979]
[1729481013087,0.001656,68781.0,68780.0,0.68815201]
[1729481013295,0.001656,68781.0,68780.0,0.69215201]
[1729481013497,0.001656,68781.0,68780.0,0.56930894]
[1729481013715,0.0001876,68790.0,68789.0,0.150372]
[1729481013932,0.0001876,68790.0,68789.0,0.53098994]
[1729481014342,0.0001876,68790.0,68789.0,0.52598994]
[1729481014540,0.0001876,68790.0,68789.0,0.53098994]
[1729481015384,0.0001876,68790.0,68789.0,0.48173115]
[1729481015592,0.0001876,68790.0,68789.0,0.50264272]
[1729481015795,0.0001876,68790.0,68789.0,0.55892705]
[1729481016003,0.0001876,68790.0,68789.0,0.53109673]
[1729481016208,0.0001876,68790.0,68789.0,0.56392583]
[1729481016415,0.0001876,68790.0,68789.0,0.56892583]
[1729481016653,0.0001876,68790.0,68789.0,0.55892583]
[1729481016855,0.0001876,68790.0,68789.0,0.56392583]
[1729481017079,0.0001876,68790.0,68789.0,0.56892583]
[1729481019701,0.0001876,68790.0,68789.0,0.56392542]
[1729481019920,0.0001876,68790.0,68789.0,0.55888578]
[1729481020138,0.0001876,68790.0,68789.0,0.56388578]
[1729481020346,0.0001876,68790.0,68789.0,0.56788578]
[1729481020682,0.0001876,68790.0,68789.0,0.56288578]
[1729481021104,0.0001876,68790.0,68789.0,0.67156189]
[1729481021336,0.0001876,68790.0,68789.0,0.67575766]
[1729481021562,0.0001876,68790.0,68789.0,0.67156189]
[1729481021982,0.0001876,68790.0,68789.0,0.67575757]
[1729481022189,0.0001876,68790.0,68789.0,0.56708146]
[1729481022673,0.0001876,68790.0,68789.0,0.57108146]
[1729481023758,0.0001876,68790.0,68789.0,0.69135701]
[1729481024187,0.0001876,68790.0,68789.0,0.58270178]
[1729481024404,0.0001876,68790.0,68789.0,0.58470178]
[1729481024604,0.0001876,68790.0,68789.0,0.58270178]
[1729481026958,0.0001876,68790.0,68789.0,0.64220238]
[1729481027165,0.0001876,68790.0,68789.0,0.65856672]
[1729481027374,0.0001876,68790.0,68789.0,0.69133072]
[1729481027809,0.0001876,68790.0,68789.0,0.69125456]
[1729481028015,0.0001876,68790.0,68789.0,0.58267549]
[1729481028432,0.0001876,68790.0,68789.0,0.63153061]
[1729481028574,0.0001876,68790.0,68789.0,0.52565081]
[1729481028792,0.0001876,68790.0,68789.0,0.61481917]
[1729481029199,0.0001876,68790.0,68789.0,0.60981399]
[1729481029397,0.0001876,68790.0,68789.0,0.61900766]
[1729481029635,0.0001876,68790.0,68789.0,0.61900792]
[1729481029838,0.0001876,68790.0,68789.0,0.55387007]
[1729481030260,0.0001876,68790.0,68789.0,0.61900246]
[1729481030519,0.0001876,68790.0,68789.0,0.59389854]
[1729481030663,0.0001876,68790.0,68789.0,0.61900359]
[1729481030890,0.0001876,68790.0,68789.0,0.61900864]
[1729481031984,0.0001876,68790.0,68789.0,0.55387625]
[1729481032203,0.0001876,68790.0,68789.0,0.54968183]
[1729481032413,0.0001876,68790.0,68789.0,0.61481422]
[1729481032626,0.0001876,68790.0,68789.0,0.55387196]
[1729481032838,0.0001876,68790.0,68789.0,0.59728942]
[1729481033045,0.0001876,68790.0,68789.0,0.59309929]
[1729481033253,0.0001876,68790.0,68789.0,0.59728942]
[1729481033675,0.0001876,68790.0,68789.0,0.55387266]
[1729481033877,0.0001876,68790.0,68789.0,0.59309709]
[1729481034135,0.0001876,68790.0,68789.0,0.59728794]
[1729481034289,0.0001876,68790.0,68789.0,0.55987356]
[1729481034516,0.0001876,68790.0,68789.0,0.58811931]
[1729481034727,0.0001876,68790.0,68789.0,0.59311931]
[1729481035153,0.0001876,68790.0,68789.0,0.54970405]
[1729481035582,0.0001876,68790.0,68789.0,0.61483644]
[1729481035808,0.0001876,68790.0,68789.0,0.59311555]
[1729481036804,0.0001876,68790.0,68789.0,0.61483644]
[1729481036973,0.0001876,68790.0,68789.0,0.54970405]
[1729481037385,0.0001876,68790.0,68789.0,0.57143155]
[1729481038214,0.0001876,68790.0,68789.0,0.63656394]
[1729481038410,0.0001876,68790.0,68789.0,0.58591655]
[1729481039128,0.0001876,68790.0,68789.0,0.61484682]
[1729481039390,0.0001876,68790.0,68789.0,0.57143155]
[1729481039531,0.0001876,68790.0,68789.0,0.2495574]
[1729481039737,0.0001876,68790.0,68789.0,0.2292564]
[1729481040313,0.0001876,68790.0,68789.0,0.2035289]
[1729481040525,0.0001876,68790.0,68789.0,0.2212564]
[1729481040950,0.0001876,68790.0,68789.0,0.20034525]
[1729481041163,0.0001876,68790.0,68789.0,0.1754854]
[1729481041365,0.0001876,68790.0,68789.0,0.18870896]
[1729481041571,0.0001876,68790.0,68789.0,0.18871481]
[1729481041984,0.0001876,68790.0,68789.0,0.19271481]
[1729481042345,0.0001876,68790.0,68789.0,0.18871481]
[1729481042750,0.0001876,68790.0,68789.0,0.19471481]
[1729481042938,0.0001876,68790.0,68789.0,0.19171481]
[1729481043334,0.0001876,68790.0,68789.0,0.19571481]
[1729481043558,0.0001876,68790.0,68789.0,0.19171481]
[1729481043796,0.0001876,68790.0,68789.0,0.18871481]
[1729481043959,0.0001876,68790.0,68789.0,0.19171481]
[1729481044393,0.0001876,68790.0,68789.0,0.20915547]
[1729481044597,0.0001876,68790.0,68789.0,0.19172538]
[1729481045151,0.0001876,68790.0,68789.0,0.18872538]
[1729481045376,0.0001876,68790.0,68789.0,0.19272538]
[1729481045834,0.0001876,68790.0,68789.0,0.19572538]
[1729481046382,0.0001876,68790.0,68789.0,0.19172538]
[1729481046815,0.0001876,68790.0,68789.0,0.19572538]
[1729481047002,0.0001876,68790.0,68789.0,0.20725941]
[1729481047224,0.0001876,68790.0,68789.0,0.20625941]
[1729481048030,0.0001876,68790.0,68789.0,0.17428369]
[1729481048238,0.0001876,68790.0,68789.0,0.2713812]
[1729481049218,0.0001876,68790.0,68789.0,0.26846302]
[1729481049404,0.0001876,68790.0,68789.0,0.2062509]
[1729481049653,0.0001876,68790.0,68789.0,0.27446576]
[1729481049860,0.0001876,68790.0,68789.0,0.25393521]
[1729481050185,0.0001876,68790.0,68789.0,0.18972035]
[1729481050820,0.0011876,68790.0,68789.0,0.27656075]
[1729481051030,0.0011876,68790.0,68789.0,0.18972035]
[1729481051239,0.0011876,68790.0,68789.0,0.27669448]
[1729481051453,0.0011876,68790.0,68789.0,0.18972035]
[1729481051665,0.0011876,68790.0,68789.0,0.27569448]
[1729481051870,0.0021876,68790.0,68789.0,0.27569433]
[1729481052087,0.0021876,68790.0,68789.0,0.17128392]
[1729481052302,0.0011876,68790.0,68789.0,0.31196778]
[1729481052509,0.0001876,68790.0,68789.0,0.29843769]
[1729481052940,0.0001876,68790.0,68789.0,0.18972003]
[1729481053419,0.0001876,68790.0,68789.0,0.18872003]
[1729481054233,0.0021876,68790.0,68789.0,0.18872003]
[1729481054433,0.0021876,68790.0,68789.0,0.20325012]
[1729481054608,0.0021876,68790.0,68789.0,0.18872003]
[1729481054815,0.0031876,68790.0,68789.0,0.18872003]
[1729481055412,0.0031876,68790.0,68789.0,0.17128374]
[1729481055617,0.0031876,68790.0,68789.0,0.20325084]
[1729481055825,0.0031876,68790.0,68789.0,0.18872034]
[1729481056279,0.0031876,68790.0,68789.0,0.20325084]
[1729481058173,0.0021876,68790.0,68789.0,0.33371203]
[1729481058573,0.0021876,68790.0,68789.0,0.33671203]
[1729481059041,0.0021876,68790.0,68789.0,0.33371203]
[1729481059168,0.0021876,68790.0,68789.0,0.20325084]
[1729481059375,0.0021876,68790.0,68789.0,0.21025702]
[1729481059588,0.0001876,68790.0,68789.0,0.21025702]
[1729481060196,0.0001876,68790.0,68789.0,0.20625702]
[1729481060393,0.0001876,68790.0,68789.0,0.19472371]
[1729481060631,0.0001876,68790.0,68789.0,0.20925809]
[1729481061034,0.0001876,68790.0,68789.0,0.21625809]
[1729481061229,0.0001876,68790.0,68789.0,0.20625809]
[1729481061434,0.0001876,68790.0,68789.0,0.19172371]
[1729481062090,0.1847876,68790.0,68789.0,0.15455815]
[1729481062287,0.33302183,68790.0,68789.0,0.03835171]
[1729481062537,0.33302183,68790.0,68789.0,0.08194596]
[1729481062538,0.1847876,68790.0,68789.0,0.08194596]
[1729481062684,0.18765283,68790.0,68789.0,0.08894596]
[1729481063044,0.18765283,68790.0,68789.0,0.01454603]
[1729481063274,0.18765283,68790.0,68789.0,0.02391566]
[1729481063470,0.18765283,68790.0,68789.0,0.04970453]
[1729481063677,0.18765283,68790.0,68789.0,0.04670453]
[1729481063678,0.18865283,68790.0,68789.0,0.04670453]
[1729481063853,0.18865283,68790.0,68789.0,0.02926318]
[1729481064071,0.18965283,68790.0,68789.0,0.02926318]
[1729481064190,0.18765283,68790.0,68789.0,0.02926318]
[1729481064395,0.18865283,68790.0,68789.0,0.02926318]
[1729481064600,0.19065283,68790.0,68789.0,0.02926318]
[1729481065057,0.19065283,68790.0,68789.0,0.03835677]
[1729481065454,0.18965283,68790.0,68789.0,0.02926318]
[1729481065881,0.18865283,68790.0,68789.0,0.02926318]
[1729481066270,0.19265283,68790.0,68789.0,0.02926318]
[1729481066434,0.18865283,68790.0,68789.0,0.02926318]
[1729481066629,0.18865283,68790.0,68789.0,0.02926308]
[1729481066834,0.19265283,68790.0,68789.0,0.02926308]
[1729481069905,0.19265283,68790.0,68789.0,0.03879672]
[1729481070685,0.19265283,68790.0,68789.0,0.02135532]
[1729481071536,0.19265283,68790.0,68789.0,0.16672732]
[1729481071951,0.1897876,68790.0,68789.0,0.16672732]
[1729481073205,0.1887876,68790.0,68789.0,0.16672732]
[1729481073620,0.1857876,68790.0,68789.0,0.16672732]
[1729481073932,0.1857876,68790.0,68789.0,0.16772732]
[1729481073933,0.1887876,68790.0,68789.0,0.16772732]
[1729481074675,0.1877876,68790.0,68789.0,0.16772732]
[1729481075055,0.1887876,68790.0,68789.0,0.16872732]
[1729481075730,0.1847876,68790.0,68789.0,0.16672732]
[1729481075931,0.1857876,68790.0,68789.0,0.16672732]
[1729481076124,0.1887876,68790.0,68789.0,0.16672732]
[1729481077838,0.1887876,68790.0,68789.0,0.16672708]
[1729481079435,0.1887876,68790.0,68789.0,0.17582046]
[1729481081168,0.1917876,68790.0,68789.0,0.17582046]
[1729481081287,0.1917876,68790.0,68789.0,0.17582036]
[1729481081712,0.1907876,68790.0,68789.0,0.17582036]
[1729481081918,0.1917876,68790.0,68789.0,0.17582036]
[1729481082135,0.0071876,68790.0,68789.0,0.17582036]
[1729481082554,0.0001876,68790.0,68789.0,0.17582036]
[1729481083009,0.0041876,68790.0,68789.0,0.17582036]
[1729481083205,0.0011876,68790.0,68789.0,0.17582036]
[1729481083561,0.0041876,68790.0,68789.0,0.17582036]
[1729481083782,0.0011876,68790.0,68789.0,0.17582036]
[1729481084190,0.0041876,68790.0,68789.0,0.17582036]
[1729481084594,0.0041876,68790.0,68789.0,0.03044836]
[1729481084811,0.0041876,68790.0,68789.0,0.00953364]
[1729481085009,0.0041876,68790.0,68789.0,0.03044834]
[1729481085214,0.0041876,68790.0,68789.0,0.17582034]
[1729481088421,0.0041876,68790.0,68789.0,0.15490564]
[1729481088608,0.0041876,68790.0,68789.0,0.163999]
[1729481088825,0.0041876,68790.0,68789.0,0.17582037]
[1729481092817,0.0041876,68790.0,68789.0,0.03044837]
[1729481094032,0.00705283,68790.0,68789.0,0.03044837]
[1729481095693,0.00705283,68790.0,68789.0,0.00953364]
[1729481095944,0.00705283,68790.0,68789.0,0.03044846]
[1729481097501,0.0041876,68790.0,68789.0,0.03044846]
[1729481097742,0.0041876,68790.0,68789.0,0.17582046]
[1729481098430,0.0041876,68790.0,68789.0,0.21938093]
[1729481099386,0.0041876,68790.0,68789.0,0.19846611]
[1729481099593,0.0041876,68790.0,68789.0,0.17127365]
[1729481099799,0.0041876,68790.0,68789.0,0.17582032]
[1729481100429,0.0041876,68790.0,68789.0,0.24116102]
[1729481100669,0.0041876,68790.0,68789.0,0.24117886]
[1729481100892,0.0041876,68790.0,68789.0,0.18002288]
[1729481101097,0.0041876,68790.0,68789.0,0.2453808]
[1729481101319,0.0041876,68790.0,68789.0,0.24117824]
[1729481101523,0.0041876,68790.0,68789.0,0.29569109]
[1729481101742,0.0041876,68790.0,68789.0,0.21274941]
[1729481101953,0.0041876,68790.0,68789.0,0.29989414]
[1729481102168,0.0041876,68790.0,68789.0,0.21274964]
[1729481102412,0.0041876,68790.0,68789.0,0.29569109]
[1729481102630,0.0041876,68790.0,68789.0,0.29570661]
[1729481103076,0.0001876,68790.0,68789.0,0.20854636]
[1729481103284,0.0001876,68790.0,68789.0,0.30390794]
[1729481103490,0.0001876,68790.0,68789.0,0.21674883]
[1729481103717,0.0001876,68790.0,68789.0,0.32567975]
[1729481103921,0.0001876,68790.0,68789.0,0.32147727]
[1729481104129,0.0001876,68790.0,68789.0,0.21474916]
[1729481104580,0.0001876,68790.0,68789.0,0.61574603]
[1729481104795,0.0001876,68790.0,68789.0,0.30369279]
[1729481105246,0.0001876,68790.0,68789.0,0.29114636]
[1729481105457,0.0001876,68790.0,68789.0,0.3056815]
[1729481105665,0.0001876,68790.0,68789.0,0.37026142]
[1729481105899,0.0001876,68790.0,68789.0,0.30110951]
[1729481106105,0.0001876,68790.0,68789.0,0.3076555]
[1729481106332,0.0001876,68790.0,68789.0,0.43641128]
[1729481106546,0.0001876,68790.0,68789.0,0.38582064]
[1729481106756,0.0001876,68790.0,68789.0,0.53477979]
[1729481106958,0.0001876,68790.0,68789.0,0.55777979]
[1729481107173,0.0001876,68790.0,68789.0,0.75284888]
[1729481107616,0.0001876,68790.0,68789.0,0.55977979]
[1729481108035,0.0001876,68790.0,68789.0,0.75278438]
[1729481108237,0.0001876,68790.0,68789.0,0.75478438]
[1729481108454,0.0001876,68790.0,68789.0,0.55977979]
[1729481108674,0.0001876,68790.0,68789.0,0.56277979]
[1729481108884,0.0001876,68790.0,68789.0,0.57077979]
[1729481109097,0.0001876,68790.0,68789.0,0.57977979]
[1729481109305,0.0001876,68790.0,68789.0,0.57177979]
[1729481109731,0.0001876,68790.0,68789.0,0.57977979]
[1729481110176,0.0001876,68790.0,68789.0,0.57024615]
[1729481110359,0.0001876,68790.0,68789.0,0.56824615]
[1729481110569,0.0001876,68790.0,68789.0,0.57024615]
[1729481110780,0.0001876,68790.0,68789.0,0.56824615]
[1729481110994,0.0001876,68790.0,68789.0,0.57024615]
[1729481112299,0.0001876,68790.0,68789.0,0.53754272]
[1729481112517,0.0001876,68790.0,68789.0,0.57017342]
[1729481116181,0.0001876,68790.0,68789.0,0.57015619]
[1729481117262,0.0001876,68790.0,68789.0,0.58015619]
[1729481119309,0.0001876,68790.0,68789.0,0.54753982]
[1729481119538,0.0001876,68790.0,68789.0,0.58014635]
[1729481120585,0.0001876,68790.0,68789.0,0.68014635]
[1729481120798,0.001648,68795.0,68794.0,0.157361]
[1729481120995,0.001648,68795.0,68794.0,0.51325375]
[1729481121450,0.001648,68795.0,68794.0,0.38283535]
[1729481122254,0.001648,68795.0,68794.0,0.38683535]
[1729481122673,0.001648,68795.0,68794.0,0.37519926]
[1729481122875,0.001648,68795.0,68794.0,0.38883437]
[1729481123496,0.001648,68795.0,68794.0,0.40332449]
[1729481124531,0.001648,68795.0,68794.0,0.38883437]
[1729481125031,0.001648,68795.0,68794.0,0.40332544]
[1729481125241,0.001648,68795.0,68794.0,0.39932544]
[1729481125461,0.001648,68795.0,68794.0,0.38483437]
[1729481125667,0.001648,68795.0,68794.0,0.38783437]
[1729481125876,0.001648,68795.0,68794.0,0.38383437]
[1729481126318,0.001648,68795.0,68794.0,0.35422834]
[1729481126536,0.001648,68795.0,68794.0,0.3868369]
[1729481126989,0.001648,68795.0,68794.0,0.38683683]
[1729481127178,0.001648,68795.0,68794.0,0.44499883]
[1729481127325,0.001648,68795.0,68794.0,0.44499891]
[1729481130049,0.001648,68795.0,68794.0,0.39148215]
[1729481130251,0.001648,68795.0,68794.0,0.43320393]
[1729481130463,0.001648,68795.0,68794.0,0.44502145]
[1729481133270,0.001648,68795.0,68794.0,0.46243972]
[1729481135942,0.001648,68807.0,68794.0,0.46243972]
[1729481135943,0.001648,68807.0,68806.0,0.145336]
[1729481136185,0.001648,68807.0,68806.0,0.21629357]
[1729481137359,0.002648,68807.0,68806.0,0.21729357]
[1729481138666,0.001648,68807.0,68806.0,0.21729357]
[1729481138876,0.002648,68807.0,68806.0,0.21829357]
[1729481139297,0.001648,68807.0,68806.0,0.21629357]
[1729481139729,0.001648,68807.0,68806.0,0.22029357]
[1729481140152,0.001648,68807.0,68806.0,0.21829357]
[1729481140580,0.001648,68807.0,68806.0,0.26176115]
[1729481141208,0.001648,68807.0,68806.0,0.22129357]
[1729481141862,0.001648,68807.0,68806.0,0.28749495]
[1729481142958,0.001648,68807.0,68806.0,0.28649495]
[1729481143420,0.001648,68807.0,68806.0,0.22129357]
[1729481143627,0.002648,68807.0,68806.0,0.22129357]
[1729481143841,0.002648,68807.0,68806.0,0.150336]
[1729481144058,0.002648,68807.0,68806.0,0.22137892]
[1729481144535,0.001648,68807.0,68806.0,0.30831409]
[1729481145598,0.001648,68807.0,68806.0,0.22137892]
[1729481146997,0.002648,68807.0,68806.0,0.22137892]
[1729481147237,0.002648,68807.0,68806.0,0.23591102]
[1729481147475,0.002648,68807.0,68806.0,0.34459574]
[1729481147711,0.002648,68807.0,68806.0,0.32368856]
[1729481147952,0.002648,68807.0,68806.0,0.34459571]
[1729481148187,0.001648,68807.0,68806.0,0.34459571]
[1729481148671,0.001648,68807.0,68806.0,0.23992675]
[1729481151122,0.001648,68807.0,68806.0,0.17524306]
[1729481151373,0.001648,68807.0,68806.0,0.23992934]
[1729481151613,0.001648,68807.0,68806.0,0.2253931]
[1729481153610,0.001648,68807.0,68806.0,0.35613633]
[1729481154827,0.172348,68807.0,68806.0,0.2253931]
[1729481155302,0.172348,68807.0,68806.0,0.2233931]
[1729481155541,0.172348,68807.0,68806.0,0.2213931]
[1729481155798,0.172348,68807.0,68806.0,0.2233931]